fUST/lending_fUST_20250302
["ID","MTS","AMOUNT","RATE_DAILY","PERIOD"]
[355059879,1740886186587,-159.119772,0.00023639,7]
[355059880,1740886186612,-164.677365,0.00023639,7]
[355059881,1740886186636,-151.0,0.00023639,7]
[355059882,1740886186661,-164.677365,0.00023639,7]
[355059883,1740886186684,-3519.797767,0.00023639,7]
[355059884,1740886186709,-19629.85965445,0.00023639,7]
[355059885,1740886186733,-3519.797767,0.00023639,7]
[355059886,1740886186757,-160.0,0.00023639,7]
[355059887,1740886186784,-151.0,0.000237,7]
[355059888,1740886186809,-151.0,0.000237,6]
[355059889,1740886186833,-151.0,0.000237,5]
[355059890,1740886186858,-151.0,0.000237,5]
[355059891,1740886186884,-580.57870355,0.0002379,5]
[355059892,1740886189080,-165.90696874,0.00023529,10]
[355059893,1740886189134,-1035.13129645,0.0002379,5]
[355059894,1740886189160,-151.0,0.000238,5]
[355059895,1740886189193,-197.881374,0.00023802,7]
[355059896,1740886189222,-197.881374,0.00023802,7]
[355059897,1740886189269,-151.0,0.00023803,7]
[355059898,1740886189296,-227.0,0.00023803,7]
[355059899,1740886189322,-151.0,0.00023803,7]
[355059900,1740886189346,-427.813923,0.00023803,7]
[355059901,1740886189375,-427.813923,0.00023803,7]
[355059902,1740886189402,-1925.03251,0.00023803,7]
[355059903,1740886189427,-1925.03251,0.00023803,7]
[355059904,1740886189453,-165.048025,0.00023803,7]
[355059905,1740886189479,-165.048025,0.00023803,7]
[355059906,1740886189505,-151.0,0.00023803,7]
[355059907,1740886189529,-151.0,0.00023803,7]
[355059908,1740886189554,-159.119772,0.00023803,7]
[355059909,1740886189578,-159.119772,0.00023803,7]
[355059910,1740886189603,-151.0,0.00023803,7]
[355059911,1740886189856,-164.677365,0.00023803,7]
[355059912,1740886189884,-164.677365,0.00023803,7]
[355059913,1740886189910,-3519.797767,0.00023803,7]
[355059914,1740886189935,-3519.797767,0.00023803,7]
[355059915,1740886189960,-197.881374,0.00023803,7]
[355059916,1740886189985,-197.881374,0.00023803,7]
[355059917,1740886190010,-151.0,0.00023903,7]
[355059918,1740886190035,-158.534334,0.00023903,7]
[355059919,1740886190059,-151.0,0.00023903,7]
[355059920,1740886190083,-491.099853,0.00023903,7]
[355059921,1740886190106,-491.099853,0.00023903,7]
[355059922,1740886190131,-151.0,0.00023903,7]
[355059923,1740886190155,-1000.324893,0.00023903,7]
[355059924,1740886190180,-1000.324893,0.00023903,7]
[355059925,1740886190204,-151.0,0.00023903,7]
[355059926,1740886190234,-555.068474,0.00023903,7]
[355059927,1740886190264,-555.068474,0.00023903,7]
[355059928,1740886190288,-190.676565,0.00023903,7]
[355059929,1740886190313,-151.0,0.00023903,7]
[355059930,1740886190338,-190.676565,0.00023903,7]
[355059931,1740886190362,-151.0,0.00023903,7]
[355059932,1740886190388,-151.0,0.00023903,7]
[355059933,1740886190413,-151.0,0.00023903,7]
[355059934,1740886190438,-537.39636,0.00023903,7]
[355059935,1740886190462,-537.39636,0.00023903,7]
[355059936,1740886190487,-2712.909691,0.00023903,7]
[355059937,1740886190512,-2712.909691,0.00023903,7]
[355059938,1740886190537,-151.0,0.00023903,7]
[355059939,1740886190562,-151.0,0.00023903,7]
[355059940,1740886190587,-427.813923,0.00023903,7]
[355059941,1740886190611,-427.813923,0.00023903,7]
[355059942,1740886190636,-1925.03251,0.00023903,7]
[355059943,1740886190661,-1925.03251,0.00023903,7]
[355059944,1740886190687,-165.048025,0.00023903,7]
[355059945,1740886190713,-165.048025,0.00023903,7]
[355059946,1740886190737,-151.0,0.00023903,7]
[355059947,1740886190761,-151.0,0.00023903,7]
[355059948,1740886190785,-159.119772,0.00023903,7]
[355059949,1740886190810,-159.119772,0.00023903,7]
[355059950,1740886190834,-203.82841,0.00023903,7]
[355059951,1740886190858,-164.677365,0.00023903,7]
[355059952,1740886190882,-164.677365,0.00023903,7]
[355059953,1740886190906,-3519.797767,0.00023903,7]
[355059954,1740886190931,-3519.797767,0.00023903,7]
[355059955,1740886190959,-151.0,0.00023912,7]
[355059956,1740886190983,-151.0,0.00023912,7]
[355059957,1740886191008,-2712.909691,0.00023912,7]
[355059958,1740886191034,-2712.909691,0.00023912,7]
[355059959,1740886191059,-197.881374,0.00023912,7]
[355059960,1740886191083,-197.881374,0.00023912,7]
[355059961,1740886191116,-217.445586,0.00023913,7]
[355059962,1740886191140,-1585.715627,0.00023913,7]
[355059963,1740886191165,-217.445586,0.00023913,7]
[355059964,1740886191189,-134.97544581,0.00023913,7]
[355059965,1740886194380,-289.28,0.00023518,3]
[355059966,1740886194460,-151.254667,0.00023638,7]
[355059967,1740886194546,-1450.74018119,0.00023913,7]
[355059968,1740886194571,-151.0,0.00023913,7]
[355059969,1740886194596,-228.05025,0.00023913,7]
[355059970,1740886194622,-228.05025,0.00023913,7]
[355059971,1740886194646,-151.0,0.00023913,7]
[355059972,1740886194671,-151.0,0.00023913,7]
[355059973,1740886194694,-151.0,0.00023913,7]
[355059974,1740886194724,-151.0,0.00023913,7]
[355059975,1740886194750,-151.0,0.00023913,7]
[355059976,1740886194775,-151.0,0.00023913,7]
[355059977,1740886194799,-151.0,0.00023913,7]
[355059978,1740886194825,-944.0085,0.00023913,7]
[355059979,1740886194849,-151.23367,0.00023913,7]
[355059980,1740886194875,-944.0085,0.00023913,7]
[355059981,1740886194901,-555.791576,0.00023913,7]
[355059982,1740886194928,-555.791576,0.00023913,7]
[355059983,1740886194953,-2080.684122,0.00023913,7]
[355059984,1740886194979,-2080.684122,0.00023913,7]
[355059985,1740886195006,-484.565914,0.00023913,7]
[355059986,1740886195034,-484.565914,0.00023913,7]
[355059987,1740886195059,-656.004015,0.00023913,7]
[355059988,1740886195084,-656.004015,0.00023913,7]
[355059989,1740886195109,-270.896872,0.00023913,7]
[355059990,1740886195134,-270.896872,0.00023913,7]
[355059991,1740886195166,-19629.85965445,0.00023913,7]
[355059992,1740886195207,-160.0,0.00023913,7]
[355059999,1740886211701,233.87420893,0.00022813,2]
[355060000,1740886224320,164.55118526,0.00022427,2]
[355060088,1740886233491,-85.44881474,0.00022427,2]
[355060090,1740886233502,-237.85900114,0.00022813,2]
[355060092,1740886233511,-424.33974705,0.00023,2]
[355060094,1740886233522,-300.0,0.00023426,2]
[355060096,1740886233532,-295.55165906,0.00023426,2]
[355060098,1740886233545,-500.0,0.00023426,2]
[355060100,1740886233555,-160.18402155,0.00023426,2]
[355060102,1740886233565,-500.0,0.00023426,2]
[355060104,1740886233576,-500.0,0.00023426,2]
[355060106,1740886233586,-648.63915397,0.00023426,2]
[355060108,1740886233596,-500.0,0.00023426,2]
[355060110,1740886233607,-274.26505109,0.00023426,2]
[355060112,1740886233617,-500.0,0.00023426,2]
[355060114,1740886233627,-2140.4411477,0.00023428,2]
[355060116,1740886233638,-2568.22929643,0.00023429,2]
[355060118,1740886233648,-1794.5792809,0.00023456,2]
[355060125,1740886233703,-500.0,0.00023426,2]
[355060127,1740886233712,-500.0,0.00023426,2]
[355060129,1740886233722,-345.8618668,0.00023456,2]
[355060131,1740886233733,-2140.4411477,0.00023484,2]
[355060133,1740886233744,-2140.4411477,0.00023511,2]
[355060135,1740886233753,-500.0,0.00023515,2]
[355060137,1740886233764,-13513.14,0.00023516,2]
[355060139,1740886233774,-500.0,0.00023516,2]
[355060141,1740886233784,-7624.93,0.00023516,2]
[355060143,1740886233796,-2961.69,0.00023516,2]
[355060145,1740886233806,-500.0,0.00023516,2]
[355060147,1740886233816,-2330.23,0.00023516,2]
[355060149,1740886233827,-2306.22,0.00023516,2]
[355060151,1740886233836,-500.0,0.00023516,2]
[355060153,1740886233848,-529.53240311,0.00023516,2]
[355060155,1740886233858,-500.58847509,0.00023516,2]
[355060157,1740886233868,-600.37934138,0.00023516,2]
[355060159,1740886233878,-500.0,0.00023516,2]
[355060161,1740886233888,-500.0,0.00023516,2]
[355060163,1740886233899,-500.0,0.00023516,2]
[355060165,1740886233909,-579.48950715,0.00023516,2]
[355060167,1740886233919,-500.0,0.00023516,2]
[355060169,1740886233929,-882784.24095227,0.0002352,7]
[355060171,1740886233939,-1868.93,0.00023527,2]
[355060173,1740886233950,-1527.36,0.00023527,2]
[355060175,1740886233960,-5219.96,0.00023527,2]
[355060177,1740886233970,-5219.96,0.00023527,2]
[355060179,1740886233981,-5219.96,0.00023527,2]
[355060182,1740886233992,-500.0,0.00023527,2]
[355060184,1740886234003,-7621.45,0.00023527,2]
[355060186,1740886234013,-500.0,0.00023528,2]
[355060188,1740886234023,-500.0,0.00023528,2]
[355060190,1740886234034,-632.19,0.00023528,2]
[355060191,1740886234045,-500.0,0.00023528,2]
[355060194,1740886234055,-2053.23,0.00023528,2]
[355060196,1740886234066,-500.0,0.00023528,2]
[355060198,1740886234076,-1289.53,0.00023528,2]
[355060200,1740886234086,-500.0,0.00023528,2]
[355060202,1740886234095,-500.0,0.00023528,2]
[355060203,1740886234105,-542.79,0.00023528,2]
[355060206,1740886234115,-500.0,0.00023528,2]
[355060207,1740886234125,-500.0,0.00023528,2]
[355060210,1740886234136,-500.0,0.00023528,2]
[355060212,1740886234146,-729.52,0.00023528,2]
[355060214,1740886234155,-2911.18,0.00023528,2]
[355060216,1740886234166,-543.53,0.00023528,2]
[355060218,1740886234175,-1263.1,0.00023528,2]
[355060220,1740886234186,-500.0,0.00023528,2]
[355060221,1740886234195,-500.0,0.00023528,2]
[355060224,1740886234205,-2931.73,0.00023528,2]
[355060226,1740886234216,-500.0,0.00023528,2]
[355060227,1740886234229,-1868.93,0.00023528,2]
[355060230,1740886234239,-1868.93,0.00023528,2]
[355060231,1740886234249,-1868.93,0.00023528,2]
[355060233,1740886234259,-1868.93,0.00023528,2]
[355060236,1740886234271,-500.0,0.00023528,2]
[355060238,1740886234281,-1979.56,0.00023528,2]
[355060240,1740886234291,-558.45866052,0.00023528,2]
[355060242,1740886234301,-500.0,0.00023528,2]
[355060243,1740886234312,-1000.0,0.00023528,2]
[355060246,1740886234322,-523.18,0.00023528,2]
[355060248,1740886234332,-500.0,0.00023528,2]
[355060250,1740886234342,-500.0,0.00023528,2]
[355060252,1740886234352,-2314.06,0.00023528,2]
[355060254,1740886234362,-500.0,0.00023528,2]
[355060256,1740886234372,-2260.58,0.00023528,2]
[355060257,1740886234381,-500.0,0.00023528,2]
[355060259,1740886234391,-828.38,0.00023528,2]
[355060262,1740886234402,-500.0,0.00023528,2]
[355060264,1740886234412,-2081.84,0.00023528,2]
[355060266,1740886234422,-1076.19,0.00023528,2]
[355060268,1740886234432,-1527.36,0.00023528,2]
[355060270,1740886234441,-1527.36,0.00023528,2]
[355060272,1740886234451,-1527.36,0.00023528,2]
[355060274,1740886234461,-1527.36,0.00023528,2]
[355060276,1740886234471,-500.0,0.00023528,2]
[355060278,1740886234482,-500.0,0.00023528,2]
[355060279,1740886234491,-1339.9,0.00023528,2]
[355060281,1740886234501,-500.0,0.00023528,2]
[355060283,1740886234511,-500.0,0.00023528,2]
[355060285,1740886234521,-500.0,0.00023528,2]
[355060287,1740886234530,-500.0,0.00023528,2]
[355060289,1740886234540,-503.2852878,0.00023528,2]
[355060291,1740886234550,-3469.31,0.00023528,2]
[355060293,1740886234560,-500.0,0.00023528,2]
[355060295,1740886234569,-1990.46,0.00023528,2]
[355060297,1740886234579,-250.51046727,0.00023528,2]
[355060299,1740886234589,-971.07,0.00023528,2]
[355060300,1740886234598,-1249.98,0.00023528,2]
[355060302,1740886234608,-2179.06,0.00023528,2]
[355060304,1740886234618,-500.0,0.00023528,2]
[355060305,1740886234628,-1012.24,0.00023528,2]
[355060307,1740886234638,-3060.91,0.00023528,2]
[355060309,1740886234649,-559.99,0.00023528,2]
[355060311,1740886234659,-615.9,0.00023528,2]
[355060313,1740886234670,-1996.5,0.00023528,2]
[355060315,1740886234679,-500.0,0.00023528,2]
[355060317,1740886234690,-4060.12,0.00023528,2]
[355060319,1740886234700,-10606.09,0.00023528,2]
[355060321,1740886234710,-2799.89,0.00023528,2]
[355060323,1740886234721,-1333.19,0.00023528,2]
[355060325,1740886234731,-719.18,0.00023528,2]
[355060327,1740886234740,-500.0,0.00023528,2]
[355060329,1740886234749,-500.0,0.00023528,2]
[355060331,1740886234760,-835.72,0.00023528,2]
[355060333,1740886234770,-1367.07,0.00023528,2]
[355060335,1740886234780,-500.0,0.00023528,2]
[355060337,1740886234791,-500.26244051,0.00023528,2]
[355060339,1740886234800,-500.0,0.00023528,2]
[355060341,1740886234810,-2939.4,0.00023528,2]
[355060343,1740886234819,-500.0,0.00023528,2]
[355060345,1740886234829,-1214.18,0.00023528,2]
[355060347,1740886234838,-5219.96,0.00023528,2]
[355060349,1740886234848,-5219.96,0.00023528,2]
[355060351,1740886234858,-5219.96,0.00023528,2]
[355060353,1740886234867,-500.0,0.00023528,2]
[355060355,1740886234877,-5219.96,0.00023528,2]
[355060357,1740886234886,-5219.96,0.00023528,2]
[355060359,1740886234896,-5219.96,0.00023528,2]
[355060361,1740886234907,-5219.96,0.00023528,2]
[355060363,1740886234917,-5219.96,0.00023528,2]
[355060365,1740886234927,-5219.96,0.00023528,2]
[355060367,1740886234937,-4481.86,0.00023528,2]
[355060369,1740886234946,-500.0,0.00023528,2]
[355060371,1740886234956,-500.0,0.00023528,2]
[355060373,1740886234966,-500.0,0.00023528,2]
[355060375,1740886234975,-500.0,0.00023528,2]
[355060377,1740886234985,-7621.45,0.00023528,2]
[355060379,1740886234995,-7621.45,0.00023528,2]
[355060380,1740886235005,-548.69,0.00023528,2]
[355060382,1740886235015,-7621.45,0.00023528,2]
[355060384,1740886235024,-7621.45,0.00023528,2]
[355060386,1740886235034,-659.46,0.00023528,2]
[355060388,1740886235044,-500.0,0.00023528,2]
[355060390,1740886235053,-4158.95,0.00023528,2]
[355060392,1740886235063,-500.0,0.00023528,2]
[355060394,1740886235072,-500.0,0.00023528,2]
[355060396,1740886235083,-848.25,0.00023528,2]
[355060398,1740886235092,-500.0,0.00023528,2]
[355060400,1740886235101,-25489.85,0.00023528,2]
[355060402,1740886235111,-500.0,0.00023528,2]
[355060404,1740886235121,-1593.02,0.00023528,2]
[355060406,1740886235130,-3140.53,0.00023528,2]
[355060408,1740886235139,-500.0,0.00023528,2]
[355060410,1740886235149,-500.0,0.00023528,2]
[355060412,1740886235159,-500.0,0.00023528,2]
[355060413,1740886235168,-716.21,0.00023528,2]
[355060415,1740886235178,-500.0,0.00023528,2]
[355060417,1740886235187,-500.0,0.00023528,2]
[355060419,1740886235198,-4639.3,0.00023528,2]
[355060421,1740886235207,-500.0,0.00023528,2]
[355060423,1740886235218,-14182.49,0.00023528,2]
[355060425,1740886235230,-500.0,0.00023528,2]
[355060427,1740886235240,-1188.6,0.00023528,2]
[355060429,1740886235250,-592.63,0.00023528,2]
[355060431,1740886235259,-1643.74,0.00023528,2]
[355060433,1740886235271,-12307.96,0.00023528,2]
[355060435,1740886235280,-500.0,0.00023528,2]
[355060437,1740886235291,-1368.42,0.00023528,2]
[355060439,1740886235301,-669.91,0.00023528,2]
[355060441,1740886235312,-500.0,0.00023528,2]
[355060443,1740886235322,-500.0,0.00023528,2]
[355060444,1740886235331,-3975.37,0.00023528,2]
[355060445,1740886235341,-501.67,0.00023528,2]
[355060446,1740886235350,-1802.14,0.00023528,2]
[355060447,1740886235360,-962.58,0.00023528,2]
[355060448,1740886235370,-20055.8,0.00023528,2]
[355060449,1740886235379,-789.66,0.00023528,2]
[355060450,1740886235389,-1159.12,0.00023528,2]
[355060451,1740886235399,-2419.35,0.00023528,2]
[355060452,1740886235409,-4017.73,0.00023528,2]
[355060453,1740886235418,-500.0,0.00023528,2]
[355060454,1740886235428,-500.0,0.00023528,2]
[355060455,1740886235438,-2550.68,0.00023528,2]
[355060456,1740886235448,-1400.73,0.00023528,2]
[355060457,1740886235458,-596.32,0.00023528,2]
[355060458,1740886235468,-505.70013762,0.00023528,2]
[355060459,1740886235478,-718.57,0.00023528,2]
[355060460,1740886235488,-500.0,0.00023528,2]
[355060461,1740886235498,-1849.98,0.00023528,2]
[355060463,1740886235508,-18199.11,0.00023528,2]
[355060465,1740886235518,-500.0,0.00023528,2]
[355060467,1740886235528,-500.0,0.00023528,2]
[355060469,1740886235538,-6307.07,0.00023528,2]
[355060471,1740886235548,-500.0,0.00023528,2]
[355060473,1740886235558,-500.0,0.00023528,2]
[355060474,1740886235567,-3500.41,0.00023528,2]
[355060476,1740886235577,-500.0,0.00023528,2]
[355060479,1740886235587,-740.47,0.00023528,2]
[355060481,1740886235597,-500.0,0.00023528,2]
[355060483,1740886235608,-1093.67,0.00023528,2]
[355060485,1740886235618,-11719.04,0.00023528,2]
[355060487,1740886235627,-2757.89,0.00023528,2]
[355060489,1740886235639,-500.0,0.00023528,2]
[355060491,1740886235648,-500.0,0.00023528,2]
[355060493,1740886235658,-1586.33,0.00023528,2]
[355060495,1740886235670,-500.0,0.00023528,2]
[355060497,1740886235680,-23789.19,0.00023528,2]
[355060499,1740886235689,-1230.43,0.00023528,2]
[355060501,1740886235699,-500.0,0.00023528,2]
[355060503,1740886235709,-500.0,0.00023528,2]
[355060505,1740886235719,-500.0,0.00023528,2]
[355060507,1740886235728,-500.0,0.00023528,2]
[355060509,1740886235738,-3144.58,0.00023528,2]
[355060511,1740886235747,-500.0,0.00023528,2]
[355060513,1740886235757,-500.0,0.00023528,2]
[355060515,1740886235767,-161.22764319,0.00023528,2]
[355060517,1740886235777,-500.0,0.00023528,2]
[355060519,1740886235786,-733.81,0.00023528,2]
[355060521,1740886235796,-500.0,0.00023529,2]
[355060523,1740886235806,-500.0,0.00023529,2]
[355060525,1740886235816,-500.0,0.00023529,2]
[355060527,1740886235826,-500.0,0.00023529,2]
[355060529,1740886235835,-500.0,0.00023529,2]
[355060531,1740886235845,-500.0,0.00023529,2]
[355060533,1740886235854,-153.87893157,0.00023529,2]
[355060535,1740886235864,-500.0,0.00023529,2]
[355060537,1740886235874,-526.15,0.00023529,2]
[355060539,1740886235884,-507.32447452,0.00023529,2]
[355060541,1740886235893,-500.0,0.00023529,2]
[355060543,1740886235903,-500.0,0.00023529,2]
[355060545,1740886235913,-500.0,0.00023529,2]
[355060547,1740886235923,-502.0846758,0.00023529,2]
[355060549,1740886235932,-500.0,0.00023529,2]
[355060551,1740886235942,-1168.03,0.00023529,2]
[355060553,1740886235952,-500.0,0.00023529,2]
[355060555,1740886235962,-501.64548635,0.00023529,2]
[355060557,1740886235972,-500.0,0.00023529,2]
[355060559,1740886235981,-500.0,0.00023529,2]
[355060561,1740886235992,-500.0,0.00023529,2]
[355060563,1740886236002,-500.0,0.00023529,2]
[355060565,1740886236013,-500.0,0.00023529,2]
[355060567,1740886236023,-500.0,0.00023529,2]
[355060569,1740886236032,-500.0,0.00023529,2]
[355060571,1740886236046,-500.0,0.00023529,2]
[355060573,1740886236056,-500.0,0.00023529,2]
[355060575,1740886236066,-501.78053207,0.00023529,2]
[355060577,1740886236075,-500.0,0.00023529,2]
[355060579,1740886236085,-500.0,0.00023529,2]
[355060581,1740886236097,-500.0,0.00023529,2]
[355060583,1740886236109,-500.0,0.00023529,2]
[355060584,1740886236118,-500.0,0.00023529,2]
[355060586,1740886236128,-500.0,0.00023529,2]
[355060588,1740886236138,-500.0,0.00023529,2]
[355060590,1740886236147,-930.89,0.00023529,2]
[355060593,1740886236157,-500.0,0.00023529,2]
[355060595,1740886236167,-500.0,0.00023529,2]
[355060597,1740886236178,-500.0,0.00023529,2]
[355060599,1740886236188,-500.0,0.00023529,2]
[355060622,1740886236417,-500.0,0.00023529,2]
[355060625,1740886236427,-500.0,0.00023529,2]
[355060627,1740886236436,-602.99,0.00023529,2]
[355060629,1740886236446,-500.0,0.00023529,2]
[355060631,1740886236458,-500.0,0.00023529,2]
[355060633,1740886236468,-500.0,0.00023529,2]
[355060635,1740886236479,-500.0,0.00023529,2]
[355060637,1740886236488,-500.0,0.00023529,2]
[355060639,1740886236499,-500.0,0.00023529,2]
[355060641,1740886236509,-553.42764635,0.00023529,2]
[355060643,1740886236519,-500.0,0.00023529,2]
[355060645,1740886236530,-500.0,0.00023529,2]
[355060647,1740886236540,-500.0,0.00023529,2]
[355060649,1740886236550,-500.0,0.00023529,2]
[355060651,1740886236560,-500.0,0.00023529,2]
[355060653,1740886236570,-508.60188842,0.00023529,2]
[355060655,1740886236580,-500.03,0.00023529,2]
[355060657,1740886236590,-912.13,0.00023529,2]
[355060659,1740886236600,-200.0,0.00023529,2]
[355060661,1740886236609,-500.17855378,0.00023529,2]
[355060663,1740886236619,-504.52378341,0.00023529,2]
[355060665,1740886236630,-500.0,0.00023529,2]
[355060667,1740886236640,-500.0,0.00023529,2]
[355060669,1740886236651,-343.47792291,0.00023529,2]
[355060671,1740886236660,-500.0,0.00023529,2]
[355060673,1740886236669,-500.0,0.00023529,2]
[355060675,1740886236679,-500.0,0.00023529,2]
[355060677,1740886236691,-500.0,0.00023529,2]
[355060679,1740886236700,-500.0,0.00023529,2]
[355060681,1740886236710,-500.0,0.00023529,2]
[355060683,1740886236720,-500.0,0.00023529,2]
[355060685,1740886236729,-500.0,0.00023529,2]
[355060687,1740886236739,-500.0,0.00023529,2]
[355060689,1740886236748,-500.0,0.00023529,2]
[355060691,1740886236759,-500.0,0.00023529,2]
[355060693,1740886236768,-500.0,0.00023529,2]
[355060694,1740886236779,-860.85,0.00023529,2]
[355060696,1740886236788,-500.0,0.00023529,2]
[355060698,1740886236799,-500.0,0.00023529,2]
[355060699,1740886236809,-508.64132363,0.00023529,2]
[355060701,1740886236819,-500.0,0.00023529,2]
[355060703,1740886236828,-500.0,0.00023529,2]
[355060705,1740886236838,-500.0,0.00023529,2]
[355060707,1740886236848,-500.0,0.00023529,2]
[355060709,1740886236857,-500.0,0.00023529,2]
[355060711,1740886236867,-500.0,0.00023529,2]
[355060713,1740886236877,-500.0,0.00023529,2]
[355060715,1740886236887,-500.0,0.00023529,2]
[355060717,1740886236896,-500.0,0.00023529,2]
[355060719,1740886236906,-500.0,0.00023529,2]
[355060721,1740886236916,-501.62772906,0.00023529,2]
[355060723,1740886236926,-573.55088134,0.00023529,2]
[355060725,1740886236935,-500.0,0.00023529,2]
[355060727,1740886236945,-500.0,0.00023529,2]
[355060729,1740886236954,-500.0,0.00023529,2]
[355060731,1740886236964,-500.0,0.00023529,2]
[355060733,1740886236974,-500.0,0.00023529,2]
[355060735,1740886236984,-500.0,0.00023529,2]
[355060737,1740886236993,-500.0,0.00023529,2]
[355060739,1740886237003,-500.0,0.00023529,2]
[355060741,1740886237013,-500.0,0.00023529,2]
[355060743,1740886237023,-500.0,0.00023529,2]
[355060745,1740886237032,-500.0,0.00023529,2]
[355060747,1740886237043,-500.0,0.00023529,2]
[355060749,1740886237052,-502.25454984,0.00023529,2]
[355060751,1740886237062,-500.0,0.00023529,2]
[355060753,1740886237072,-500.0,0.00023529,2]
[355060755,1740886237082,-500.0,0.00023529,2]
[355060757,1740886237092,-500.0,0.00023529,2]
[355060759,1740886237102,-500.0,0.00023529,2]
[355060761,1740886237111,-524.64367414,0.00023529,2]
[355060763,1740886237121,-258.4546346,0.00023529,2]
[355060765,1740886237131,-500.0,0.00023529,2]
[355060767,1740886237140,-500.0,0.00023529,2]
[355060769,1740886237151,-500.0,0.00023529,2]
[355060771,1740886237160,-1228.22,0.00023529,2]
[355060772,1740886237170,-756.89,0.00023529,2]
[355060774,1740886237180,-500.0,0.00023529,2]
[355060776,1740886237190,-585.74,0.00023529,2]
[355060778,1740886237199,-500.0,0.00023529,2]
[355060780,1740886237209,-500.0,0.00023529,2]
[355060782,1740886237219,-500.0,0.00023529,2]
[355060784,1740886237232,-500.0,0.00023529,2]
[355060786,1740886237241,-460.12910156,0.00023529,2]
[355060788,1740886237251,-500.0,0.00023529,2]
[355060790,1740886237261,-500.0,0.00023529,2]
[355060792,1740886237271,-500.0,0.00023529,2]
[355060794,1740886237281,-500.0,0.00023529,2]
[355060796,1740886237290,-500.0,0.00023529,2]
[355060797,1740886237302,-503.41645599,0.00023529,2]
[355060799,1740886237311,-564.12,0.00023529,2]
[355060801,1740886237321,-500.0,0.00023529,2]
[355060803,1740886237331,-500.0,0.00023529,2]
[355060805,1740886237341,-500.0,0.00023529,2]
[355060807,1740886237350,-500.0,0.00023529,2]
[355060809,1740886237360,-500.0,0.00023529,2]
[355060811,1740886237370,-500.0,0.00023529,2]
[355060813,1740886237379,-500.0,0.00023529,2]
[355060815,1740886237389,-685.69,0.00023529,2]
[355060817,1740886237399,-500.0,0.00023529,2]
[355060819,1740886237409,-500.0,0.00023529,2]
[355060821,1740886237419,-500.0,0.00023529,2]
[355060823,1740886237428,-500.0,0.00023529,2]
[355060825,1740886237438,-500.0,0.00023529,2]
[355060827,1740886237447,-500.0,0.00023529,2]
[355060829,1740886237457,-500.0,0.00023529,2]
[355060831,1740886237466,-507.57957512,0.00023529,2]
[355060833,1740886237476,-500.0,0.00023529,2]
[355060835,1740886237486,-500.0,0.00023529,2]
[355060837,1740886237495,-500.0,0.00023529,2]
[355060839,1740886237504,-500.0,0.00023529,2]
[355060841,1740886237515,-500.0,0.00023529,2]
[355060842,1740886237524,-500.0,0.00023529,2]
[355060844,1740886237534,-501.69230684,0.00023529,2]
[355060846,1740886237544,-509.1,0.00023529,2]
[355060848,1740886237554,-500.0,0.00023529,2]
[355060850,1740886237563,-500.0,0.00023529,2]
[355060852,1740886237574,-500.0,0.00023529,2]
[355060854,1740886237584,-500.0,0.00023529,2]